lending/lending_fUSD_20250719
["ID","MTS","AMOUNT","RATE_DAILY","PERIOD"]
[373163155,1752888662491,-480.0,0.00019287,2]
[373163156,1752888662500,-423.04657314,0.00019287,2]
[373163158,1752888662509,-480.0,0.00019287,2]
[373163160,1752888662519,-480.0,0.00019287,2]
[373163162,1752888662529,-480.0,0.00019287,2]
[373163164,1752888662539,-480.0,0.00019287,2]
[373163166,1752888662549,-480.0,0.00019287,2]
[373163168,1752888662559,-1260.04,0.00019287,2]
[373163170,1752888662568,-480.0,0.00019287,2]
[373163172,1752888662577,-480.0,0.00019287,2]
[373163174,1752888662587,-480.0,0.00019287,2]
[373163176,1752888662596,-288.85305591,0.00019287,2]
[373163178,1752888662605,-480.0,0.00019287,2]
[373163180,1752888662614,-480.0,0.00019287,2]
[373163182,1752888662623,-480.0,0.00019287,2]
[373163184,1752888662634,-524.26,0.00019287,2]
[373163186,1752888662646,-664.17,0.00019287,2]
[373163187,1752888662655,-480.0,0.00019287,2]
[373163189,1752888662665,-914.42,0.00019287,2]
[373163191,1752888662674,-480.0,0.00019287,2]
[373163193,1752888662683,-480.0,0.00019287,2]
[373163195,1752888662692,-655.69,0.00019287,2]
[373163197,1752888662702,-472.88,0.00019287,2]
[373163199,1752888662711,-440.0,0.00019287,2]
[373163201,1752888662721,-480.0,0.00019287,2]
[373163203,1752888662730,-644.27,0.00019287,2]
[373163205,1752888662739,-480.0,0.00019287,2]
[373163207,1752888662748,-543.45390602,0.00019287,2]
[373163209,1752888662757,-394.99078441,0.00019287,2]
[373163211,1752888662766,-840.85,0.00019287,2]
[373163213,1752888662775,-480.0,0.00019287,2]
[373163215,1752888662785,-480.0,0.00019287,2]
[373163217,1752888662794,-480.0,0.00019287,2]
[373163219,1752888662803,-480.0,0.00019287,2]
[373163220,1752888662812,-480.0,0.00019287,2]
[373163222,1752888662822,-617.21,0.00019287,2]
[373163224,1752888662831,-480.0,0.00019287,2]
[373163227,1752888662841,-480.0,0.00019287,2]
[373163228,1752888662850,-480.0,0.00019287,2]
[373163230,1752888662859,-480.0,0.00019287,2]
[373163232,1752888662868,-480.0,0.00019287,2]
[373163234,1752888662878,-480.0,0.00019287,2]
[373163236,1752888662892,-611.79,0.00019287,2]
[373163238,1752888662902,-480.0,0.00019287,2]
[373163240,1752888662911,-480.0,0.00019287,2]
[373163242,1752888662920,-480.0,0.00019287,2]
[373163244,1752888662930,-480.0,0.00019287,2]
[373163246,1752888662940,-480.0,0.00019287,2]
[373163248,1752888662949,-480.0,0.00019287,2]
[373163250,1752888662958,-480.0,0.00019287,2]
[373163252,1752888662967,-631.4,0.00019287,2]
[373163254,1752888662976,-480.0,0.00019287,2]
[373163256,1752888662985,-667.12,0.00019287,2]
[373163258,1752888662994,-480.0,0.00019287,2]
[373163260,1752888663004,-480.0,0.00019287,2]
[373163262,1752888663013,-480.0,0.00019287,2]
[373163264,1752888663023,-998.16,0.00019287,2]
[373163266,1752888663032,-480.0,0.00019287,2]
[373163268,1752888663041,-480.0,0.00019287,2]
[373163270,1752888663050,-480.0,0.00019287,2]
[373163272,1752888663060,-480.0,0.00019287,2]
[373163273,1752888663069,-485.49,0.00019287,2]
[373163275,1752888663079,-503.37619079,0.00019287,2]
[373163277,1752888663089,-480.0,0.00019287,2]
[373163279,1752888663098,-480.0,0.00019287,2]
[373163281,1752888663107,-405.31978361,0.00019287,2]
[373163283,1752888663116,-877.71,0.00019287,2]
[373163285,1752888663126,-272.3075855,0.00019287,2]
[373163287,1752888663138,-480.0,0.00019287,2]
[373163289,1752888663150,-480.0,0.00019287,2]
[373163291,1752888663159,-480.0,0.00019287,2]
[373163293,1752888663169,-480.0,0.00019287,2]
[373163295,1752888663179,-881.24,0.00019287,2]
[373163297,1752888663190,-480.0,0.00019287,2]
[373163299,1752888663200,-480.0,0.00019287,2]
[373163301,1752888663210,-202.90766449,0.00019287,2]
[373163303,1752888663220,-574.92,0.00019287,2]
[373163305,1752888663230,-480.0,0.00019287,2]
[373163307,1752888663240,-480.0,0.00019287,2]
[373163309,1752888663249,-502.0,0.00019287,2]
[373163311,1752888663259,-480.0,0.00019287,2]
[373163313,1752888663269,-480.0,0.00019287,2]
[373163315,1752888663278,-480.0,0.00019287,2]
[373163317,1752888663288,-521.42,0.00019287,2]
[373163318,1752888663297,-481.46,0.00019287,2]
[373163320,1752888663307,-480.0,0.00019287,2]
[373163322,1752888663316,-578.28,0.00019287,2]
[373163324,1752888663326,-1069.98,0.00019287,2]
[373163326,1752888663335,-918.24,0.00019287,2]
[373163328,1752888663344,-480.0,0.00019287,2]
[373163330,1752888663354,-480.0,0.00019287,2]
[373163332,1752888663363,-480.0,0.00019287,2]
[373163334,1752888663372,-480.0,0.00019287,2]
[373163336,1752888663382,-480.0,0.00019287,2]
[373163338,1752888663395,-696.46,0.00019287,2]
[373163340,1752888663404,-568.95,0.00019287,2]
[373163342,1752888663414,-480.0,0.00019287,2]
[373163344,1752888663423,-920.75,0.00019287,2]
[373163346,1752888663432,-480.0,0.00019287,2]
[373163347,1752888663441,-480.0,0.00019287,2]
[373163349,1752888663450,-582.29,0.00019287,2]
[373163351,1752888663459,-716.53,0.00019287,2]
[373163353,1752888663469,-480.0,0.00019287,2]
[373163355,1752888663479,-419.597211,0.00019287,2]
[373163357,1752888663488,-480.0,0.00019287,2]
[373163359,1752888663498,-480.0,0.00019287,2]
[373163361,1752888663507,-505.66,0.00019287,2]
[373163363,1752888663517,-585.79,0.00019287,2]
[373163365,1752888663526,-495.19,0.00019287,2]
[373163367,1752888663535,-480.0,0.00019287,2]
[373163369,1752888663544,-480.0,0.00019287,2]
[373163371,1752888663557,-480.0,0.00019287,2]
[373163373,1752888663567,-830.19,0.00019287,2]
[373163374,1752888663576,-480.0,0.00019287,2]
[373163376,1752888663586,-4174.88,0.00019287,2]
[373163378,1752888663595,-480.0,0.00019287,2]
[373163380,1752888663604,-480.0,0.00019287,2]
[373163382,1752888663613,-480.0,0.00019287,2]
[373163384,1752888663623,-360.0,0.00019287,2]
[373163386,1752888663633,-650.56,0.00019287,2]
[373163388,1752888663645,-480.0,0.00019287,2]
[373163390,1752888663653,-835.95,0.00019287,2]
[373163392,1752888663662,-480.0,0.00019287,2]
[373163394,1752888663671,-480.0,0.00019287,2]
[373163396,1752888663681,-480.0,0.00019287,2]
[373163397,1752888663690,-933.22,0.00019287,2]
[373163399,1752888663699,-480.0,0.00019287,2]
[373163401,1752888663708,-480.0,0.00019287,2]
[373163403,1752888663718,-351.7988665,0.00019287,2]
[373163405,1752888663727,-480.0,0.00019287,2]
[373163407,1752888663737,-569.06,0.00019287,2]
[373163409,1752888663747,-480.0,0.00019287,2]
[373163411,1752888663756,-480.0,0.00019287,2]
[373163413,1752888663766,-602.69,0.00019287,2]
[373163415,1752888663775,-480.0,0.00019287,2]
[373163417,1752888663784,-480.0,0.00019287,2]
[373163419,1752888663794,-1447.89,0.00019287,2]
[373163421,1752888663812,-480.0,0.00019287,2]
[373163423,1752888663822,-480.0,0.00019287,2]
[373163425,1752888663831,-621.28,0.00019287,2]
[373163427,1752888663841,-480.0,0.00019287,2]
[373163429,1752888663850,-480.0,0.00019287,2]
[373163431,1752888663860,-910.53,0.00019287,2]
[373163433,1752888663869,-440.0,0.00019287,2]
[373163435,1752888663878,-480.0,0.00019287,2]
[373163437,1752888663890,-480.0,0.00019287,2]
[373163439,1752888663900,-480.0,0.00019287,2]
[373163441,1752888663909,-1081.58,0.00019287,2]
[373163443,1752888663918,-480.0,0.00019287,2]
[373163444,1752888663928,-480.0,0.00019287,2]
[373163446,1752888663938,-588.15,0.00019287,2]
[373163448,1752888663947,-480.0,0.00019287,2]
[373163450,1752888663956,-480.0,0.00019287,2]
[373163452,1752888663965,-480.0,0.00019287,2]
[373163454,1752888663975,-480.0,0.00019287,2]
[373163455,1752888663984,-480.0,0.00019287,2]
[373163456,1752888663994,-480.0,0.00019287,2]
[373163457,1752888664003,-3061.9,0.00019287,2]
[373163458,1752888664013,-480.0,0.00019287,2]
[373163459,1752888664022,-517.24532963,0.00019287,2]
[373163460,1752888664032,-480.0,0.00019287,2]
[373163461,1752888664041,-480.0,0.00019287,2]
[373163462,1752888664051,-480.0,0.00019287,2]
[373163463,1752888664060,-480.0,0.00019287,2]
[373163464,1752888664070,-650.55,0.00019287,2]
[373163465,1752888664079,-480.0,0.00019287,2]
[373163466,1752888664088,-590.15,0.00019287,2]
[373163468,1752888664097,-480.0,0.00019287,2]
[373163470,1752888664106,-271.65512901,0.00019287,2]
[373163472,1752888664116,-765.38,0.00019287,2]
[373163474,1752888664125,-480.0,0.00019287,2]
[373163476,1752888664137,-345.65,0.00019287,2]
[373163478,1752888664150,-480.0,0.00019287,2]
[373163480,1752888664160,-779.26,0.00019287,2]
[373163482,1752888664170,-730.13,0.00019287,2]
[373163484,1752888664179,-564.9,0.00019287,2]
[373163486,1752888664189,-480.0,0.00019287,2]
[373163488,1752888664199,-480.0,0.00019287,2]
[373163490,1752888664208,-1273.31,0.00019287,2]
[373163492,1752888664219,-480.0,0.00019287,2]
[373163494,1752888664229,-480.0,0.00019287,2]
[373163496,1752888664238,-480.0,0.00019287,2]
[373163498,1752888664247,-480.0,0.00019287,2]
[373163500,1752888664256,-480.0,0.00019287,2]
[373163502,1752888664265,-856.25,0.00019287,2]
[373163504,1752888664275,-480.0,0.00019287,2]
[373163506,1752888664284,-493.88,0.00019287,2]
[373163508,1752888664293,-480.0,0.00019287,2]
[373163509,1752888664302,-480.0,0.00019287,2]
[373163511,1752888664312,-1090.52,0.00019287,2]
[373163513,1752888664321,-480.0,0.00019287,2]
[373163515,1752888664331,-480.0,0.00019287,2]
[373163517,1752888664341,-1533.88,0.00019287,2]
[373163519,1752888664351,-480.0,0.00019287,2]
[373163521,1752888664361,-480.0,0.00019287,2]
[373163523,1752888664370,-480.0,0.00019287,2]
[373163525,1752888664379,-480.0,0.00019287,2]
[373163527,1752888664391,-497.14,0.00019287,2]
[373163529,1752888664400,-460.0,0.00019287,2]
[373163531,1752888664410,-761.08,0.00019287,2]
[373163533,1752888664419,-480.0,0.00019287,2]
[373163535,1752888664428,-480.0,0.00019287,2]
[373163537,1752888664437,-152.03030452,0.00019287,2]
[373163539,1752888664446,-205.6096734,0.00019287,2]
[373163541,1752888664455,-590.77,0.00019287,2]
[373163543,1752888664464,-480.0,0.00019287,2]
[373163545,1752888664474,-480.0,0.00019287,2]
[373163547,1752888664483,-480.0,0.00019287,2]
[373163549,1752888664492,-572.66,0.00019287,2]
[373163551,1752888664501,-1780.4,0.00019287,2]
[373163552,1752888664510,-480.0,0.00019287,2]
[373163554,1752888664519,-428.33905557,0.00019287,2]
[373163556,1752888664528,-480.0,0.00019287,2]
[373163558,1752888664538,-982.44,0.00019287,2]
[373163561,1752888664547,-480.0,0.00019287,2]
[373163563,1752888664556,-583.37,0.00019287,2]
[373163564,1752888664567,-932.52,0.00019287,2]
[373163567,1752888664577,-480.0,0.00019287,2]
[373163569,1752888664589,-566.63,0.00019287,2]
[373163570,1752888664600,-568.61,0.00019287,2]
[373163572,1752888664610,-607.81,0.00019287,2]
[373163575,1752888664619,-576.95,0.00019287,2]
[373163576,1752888664629,-480.0,0.00019287,2]
[373163578,1752888664640,-1155.68,0.00019287,2]
[373163581,1752888664650,-696.38,0.00019287,2]
[373163582,1752888664659,-420.0,0.00019287,2]
[373163584,1752888664669,-496.58,0.00019287,2]
[373163587,1752888664678,-480.0,0.00019287,2]
[373163588,1752888664689,-480.0,0.00019287,2]
[373163591,1752888664699,-709.78,0.00019287,2]
[373163592,1752888664708,-480.0,0.00019287,2]
[373163594,1752888664717,-480.0,0.00019287,2]
[373163596,1752888664726,-724.41,0.00019287,2]
[373163598,1752888664735,-480.0,0.00019287,2]
[373163600,1752888664745,-480.0,0.00019287,2]
[373163602,1752888664754,-3370.58,0.00019287,2]
[373163604,1752888664764,-480.0,0.00019287,2]
[373163606,1752888664773,-719.42,0.00019287,2]
[373163608,1752888664782,-480.0,0.00019287,2]
[373163610,1752888664791,-480.0,0.00019287,2]
[373163612,1752888664800,-2124.84,0.00019287,2]
[373163614,1752888664809,-640.67,0.00019287,2]
[373163615,1752888664827,-487.25,0.00019287,2]
[373163617,1752888664837,-480.0,0.00019287,2]
[373163619,1752888664846,-480.0,0.00019287,2]
[373163621,1752888664855,-480.0,0.00019287,2]
[373163623,1752888664865,-480.0,0.00019287,2]
[373163626,1752888664874,-480.0,0.00019287,2]
[373163628,1752888664884,-495.49,0.00019287,2]
[373163630,1752888664893,-3131.25,0.00019287,2]
[373163632,1752888664903,-1078.16,0.00019287,2]
[373163633,1752888664912,-480.0,0.00019287,2]
[373163635,1752888664921,-480.0,0.00019287,2]
[373163637,1752888664931,-480.0,0.00019287,2]
[373163639,1752888664941,-480.0,0.00019287,2]
[373163641,1752888664950,-480.0,0.00019287,2]
[373163643,1752888664959,-480.0,0.00019287,2]
[373163645,1752888664969,-480.0,0.00019287,2]
[373163647,1752888664979,-706.8,0.00019287,2]
[373163649,1752888664988,-898.9,0.00019287,2]
[373163651,1752888664997,-553.3,0.00019287,2]
[373163653,1752888665006,-480.0,0.00019287,2]
[373163655,1752888665016,-2995.02,0.00019287,2]
[373163657,1752888665026,-871.17,0.00019287,2]
[373163659,1752888665036,-3995.22,0.00019287,2]
[373163661,1752888665045,-480.0,0.00019287,2]
[373163663,1752888665055,-480.0,0.00019287,2]
[373163665,1752888665064,-480.0,0.00019287,2]
[373163667,1752888665074,-480.0,0.00019287,2]
[373163669,1752888665083,-480.0,0.00019287,2]
[373163671,1752888665092,-480.0,0.00019287,2]
[373163673,1752888665103,-1855.61,0.00019287,2]
[373163675,1752888665112,-1340.32,0.00019287,2]
[373163677,1752888665122,-1013.99,0.00019287,2]
[373163679,1752888665131,-5464.38,0.00019287,2]
[373163681,1752888665145,-612.82,0.00019287,2]
[373163683,1752888665155,-480.0,0.00019287,2]
[373163685,1752888665164,-1917.13,0.00019287,2]
[373163687,1752888665173,-619.26,0.00019287,2]
[373163689,1752888665183,-823.03,0.00019287,2]
[373163691,1752888665192,-528.33,0.00019287,2]
[373163704,1752888665201,-720.52,0.00019287,2]
[373163707,1752888665324,-480.0,0.00019287,2]
[373163709,1752888665334,-1681.6,0.00019287,2]
[373163711,1752888665343,-13559.65,0.00019287,2]
[373163713,1752888665352,-968.31,0.00019287,2]
[373163715,1752888665362,-1252.73,0.00019287,2]
[373163717,1752888665371,-791.37,0.00019287,2]
[373163719,1752888665380,-480.0,0.00019287,2]
[373163721,1752888665392,-875.72,0.00019287,2]
[373163723,1752888665402,-480.0,0.00019287,2]
[373163725,1752888665411,-480.0,0.00019287,2]
[373163727,1752888665420,-480.0,0.00019287,2]
[373163729,1752888665429,-509.77,0.00019287,2]
[373163731,1752888665439,-535.75,0.00019287,2]
[373163733,1752888665448,-480.0,0.00019287,2]
[373163735,1752888665457,-480.0,0.00019287,2]
[373163737,1752888665467,-1032.63,0.00019287,2]
[373163739,1752888665477,-1005.17,0.00019287,2]
[373163741,1752888665486,-802.98,0.00019287,2]
[373163743,1752888665495,-480.0,0.00019287,2]
[373163745,1752888665505,-1082.65,0.00019287,2]
[373163747,1752888665514,-969.04,0.00019287,2]
[373163749,1752888665523,-480.0,0.00019287,2]
[373163751,1752888665532,-480.0,0.00019287,2]
[373163753,1752888665542,-480.0,0.00019287,2]
[373163755,1752888665551,-1629.45,0.00019287,2]
[373163757,1752888665560,-1514.35,0.00019287,2]
[373163759,1752888665570,-480.0,0.00019287,2]
[373163761,1752888665579,-480.0,0.00019287,2]
[373163763,1752888665589,-462.72431955,0.00019287,2]
[373163765,1752888665598,-805.13,0.00019287,2]
[373163767,1752888665607,-1066.81,0.00019287,2]
[373163769,1752888665617,-4796.86,0.00019287,2]
[373163771,1752888665627,-480.0,0.00019287,2]
[373163773,1752888665637,-480.0,0.00019287,2]
[373163775,1752888665647,-480.0,0.00019287,2]
[373163777,1752888665657,-1021.81,0.00019287,2]
[373163779,1752888665666,-480.0,0.00019287,2]
[373163781,1752888665675,-480.0,0.00019287,2]
[373163783,1752888665685,-3566.89,0.00019287,2]
[373163785,1752888665695,-480.0,0.00019287,2]
[373163787,1752888665704,-1603.75,0.00019287,2]
[373163789,1752888665714,-480.0,0.00019287,2]
[373163791,1752888665723,-480.0,0.00019287,2]
[373163793,1752888665733,-821.44,0.00019287,2]
[373163795,1752888665742,-441.30789472,0.00019287,2]
[373163797,1752888665752,-821.18,0.00019287,2]
[373163799,1752888665761,-480.0,0.00019287,2]
[373163802,1752888665771,-480.0,0.00019287,2]
[373163803,1752888665781,-1634.05,0.00019287,2]
[373163805,1752888665790,-2490.92,0.00019287,2]
[373163808,1752888665800,-604.7,0.00019287,2]
[373163810,1752888665809,-3087.9,0.00019287,2]
[373163812,1752888665819,-583.25,0.00019287,2]
[373163813,1752888665828,-970.72,0.00019287,2]
[373163815,1752888665838,-1748.84,0.00019287,2]
[373163818,1752888665848,-380.0,0.00019287,2]
[373163820,1752888665857,-480.0,0.00019287,2]
[373163822,1752888665867,-480.0,0.00019287,2]
[373163824,1752888665877,-480.0,0.00019287,2]
[373163825,1752888665887,-480.0,0.00019287,2]
[373163828,1752888665896,-480.0,0.00019287,2]
[373163830,1752888665906,-603.46,0.00019287,2]
[373163832,1752888665916,-480.0,0.00019287,2]
[373163834,1752888665925,-532.91,0.00019287,2]
[373163835,1752888665935,-1915.86,0.00019287,2]
[373163837,1752888665944,-1057.88,0.00019287,2]
[373163839,1752888665954,-480.0,0.00019287,2]
[373163842,1752888665964,-480.0,0.00019287,2]
[373163844,1752888665974,-2361.11,0.00019287,2]
[373163846,1752888665983,-2279.02,0.00019287,2]
[373163847,1752888665994,-480.0,0.00019287,2]
[373163849,1752888666004,-480.0,0.00019287,2]
[373163851,1752888666014,-828.8,0.00019287,2]
[373163853,1752888666024,-480.0,0.00019287,2]
[373163856,1752888666034,-564.95,0.00019287,2]
[373163857,1752888666046,-825.18,0.00019287,2]
[373163860,1752888666057,-1303.91,0.00019287,2]
[373163861,1752888666067,-480.0,0.00019287,2]
[373163863,1752888666078,-1096.8,0.00019287,2]
[373163866,1752888666087,-1813.24,0.00019287,2]
[373163868,1752888666098,-566.27,0.00019287,2]
[373163870,1752888666108,-480.0,0.00019287,2]
[373163871,1752888666118,-494.97,0.00019287,2]
[373163874,1752888666128,-480.0,0.00019287,2]
[373163875,1752888666141,-1571.61,0.00019287,2]
[373163878,1752888666151,-5046.27,0.00019287,2]
[373163879,1752888666161,-962.21,0.00019287,2]
[373163882,1752888666172,-480.0,0.00019287,2]
[373163884,1752888666183,-381.22512603,0.00019287,2]
[373163886,1752888666193,-520.74,0.00019287,2]
[373163888,1752888666203,-868.4,0.00019287,2]
[373163890,1752888666212,-480.0,0.00019287,2]
[373163892,1752888666223,-2145.47,0.00019287,2]
[373163893,1752888666233,-480.0,0.00019287,2]
[373163896,1752888666243,-1859.22,0.00019287,2]
[373163898,1752888666252,-2324.63,0.00019287,2]
[373163900,1752888666263,-680.56,0.00019287,2]
[373163902,1752888666272,-480.0,0.00019287,2]
[373163904,1752888666281,-480.0,0.00019287,2]
[373163906,1752888666290,-698.05,0.00019287,2]
[373163908,1752888666300,-2000.63,0.00019287,2]
[373163910,1752888666310,-977.92,0.00019287,2]
[373163912,1752888666319,-263.5183241,0.00019287,2]
[373163914,1752888666329,-532.95,0.00019287,2]
[373163916,1752888666339,-1464.48,0.00019287,2]
[373163918,1752888666349,-566.02,0.00019287,2]
[373163919,1752888666359,-1622.47,0.00019287,2]
[373163922,1752888666368,-480.0,0.00019287,2]
[373163923,1752888666377,-526.96,0.00019287,2]
[373163926,1752888666389,-1223.86,0.00019287,2]
[373163928,1752888666399,-480.0,0.00019287,2]
[373163930,1752888666409,-1945.01,0.00019287,2]
[373163932,1752888666419,-4391.98,0.00019287,2]
[373163934,1752888666428,-962.59,0.00019287,2]
[373163936,1752888666438,-480.0,0.00019287,2]
[373163938,1752888666447,-1016.89,0.00019287,2]
[373163940,1752888666456,-1497.68,0.00019287,2]
[373163942,1752888666465,-3188.33,0.00019287,2]
[373163944,1752888666474,-480.0,0.00019287,2]
[373163946,1752888666484,-817.83,0.00019287,2]
[373163948,1752888666493,-480.0,0.00019287,2]
[373163950,1752888666503,-8208.97,0.00019287,2]
[373163952,1752888666513,-1589.38,0.00019287,2]
[373163954,1752888666522,-878.55,0.00019287,2]
[373163956,1752888666532,-474.6,0.00019287,2]
[373163958,1752888666542,-480.0,0.00019287,2]
[373163960,1752888666551,-320.0,0.00019287,2]
[373163962,1752888666561,-2919.23,0.00019287,2]
[373163964,1752888666571,-2236.36,0.00019287,2]
[373163966,1752888666580,-3984.11,0.00019287,2]
[373163968,1752888666590,-800.44,0.00019287,2]
[373163970,1752888666600,-480.0,0.00019287,2]
[373163972,1752888666610,-1183.06,0.00019287,2]
[373163974,1752888666620,-480.0,0.00019287,2]
[373163976,1752888666630,-480.0,0.00019287,2]
[373163978,1752888666641,-480.0,0.00019287,2]
[373163980,1752888666651,-725.36,0.00019287,2]
[373163982,1752888666660,-2117.64,0.00019287,2]
[373163984,1752888666669,-480.0,0.00019287,2]
[373163986,1752888666679,-441.29651129,0.00019287,2]
[373163988,1752888666689,-2173.08,0.00019287,2]
[373163990,1752888666700,-481.24506657,0.00019287,2]
[373163992,1752888666711,-325.24969092,0.00019287,2]
[373163993,1752888666721,-480.0,0.00019287,2]
[373163994,1752888666731,-2731.47,0.00019287,2]
[373163995,1752888666740,-1978.38,0.00019287,2]
[373163996,1752888666750,-531.72,0.00019287,2]
[373163997,1752888666760,-480.0,0.00019287,2]
[373163998,1752888666769,-555.35,0.00019287,2]
[373163999,1752888666778,-480.0,0.00019287,2]
[373164000,1752888666788,-1343.88,0.00019287,2]
[373164001,1752888666798,-480.0,0.00019287,2]
[373164002,1752888666820,-480.0,0.00019287,2]
[373164003,1752888666829,-2481.37,0.00019287,2]
[373164005,1752888666840,-480.0,0.00019287,2]
[373164008,1752888666849,-480.0,0.00019287,2]
[373164010,1752888666859,-480.0,0.00019287,2]
[373164012,1752888666869,-728.91,0.00019287,2]
[373164014,1752888666878,-480.0,0.00019287,2]
[373164015,1752888666889,-560.64,0.00019287,2]
[373164018,1752888666899,-480.0,0.00019287,2]
[373164020,1752888666908,-480.0,0.00019287,2]
[373164021,1752888666918,-480.0,0.00019287,2]
[373164024,1752888666927,-508.37,0.00019287,2]
[373164026,1752888666937,-585.12,0.00019287,2]
[373164028,1752888666947,-1149.78,0.00019287,2]
[373164030,1752888666956,-3388.13,0.00019287,2]
[373164032,1752888666965,-2906.59,0.00019287,2]
[373164034,1752888666974,-891.26,0.00019287,2]
[373164037,1752888666994,-1185.44,0.00019287,2]
[373164039,1752888667005,-480.0,0.00019287,2]
[373164041,1752888667015,-2035.15,0.00019287,2]
[373164043,1752888667025,-748.68,0.00019287,2]
[373164045,1752888667036,-441.72590174,0.00019287,2]
[373164047,1752888667046,-1441.68,0.00019287,2]
[373164049,1752888667057,-460.0,0.00019287,2]
[373164051,1752888667068,-998.17,0.00019287,2]
[373164053,1752888667078,-1381.67,0.00019287,2]
[373164055,1752888667088,-440.0,0.00019287,2]
[373164057,1752888667098,-480.0,0.00019287,2]
[373164060,1752888667108,-994.6,0.00019287,2]
[373164062,1752888667118,-480.0,0.00019287,2]
[373164064,1752888667128,-523.26,0.00019287,2]
[373164066,1752888667139,-615.01,0.00019287,2]
[373164068,1752888667151,-480.0,0.00019287,2]
[373164069,1752888667160,-480.0,0.00019287,2]
[373164072,1752888667170,-2381.44,0.00019287,2]
[373164074,1752888667180,-2219.69,0.00019287,2]
[373164076,1752888667191,-480.0,0.00019287,2]
[373164078,1752888667202,-6547.29,0.00019287,2]
[373164080,1752888667211,-480.0,0.00019287,2]
[373164082,1752888667222,-480.0,0.00019287,2]
[373164084,1752888667232,-5876.53,0.00019287,2]
[373164086,1752888667242,-781.22,0.00019287,2]
[373164088,1752888667251,-574.05,0.00019287,2]
[373164090,1752888667262,-1256.0,0.00019287,2]
[373164092,1752888667272,-480.0,0.00019287,2]
[373164094,1752888667282,-480.0,0.00019287,2]
[373164096,1752888667292,-480.0,0.00019287,2]
[373164098,1752888667301,-34456.48,0.00019287,2]
[373164100,1752888667312,-1885.62,0.00019287,2]
[373164102,1752888667321,-480.0,0.00019287,2]
[373164104,1752888667331,-480.0,0.00019287,2]
[373164106,1752888667341,-1843.88,0.00019287,2]
[373164108,1752888667350,-1063.27,0.00019287,2]
[373164110,1752888667360,-756.65,0.00019287,2]
[373164112,1752888667370,-779.84,0.00019287,2]
[373164114,1752888667380,-902.36,0.00019287,2]
[373164116,1752888667391,-480.0,0.00019287,2]
[373164118,1752888667401,-879.53,0.00019287,2]
[373164120,1752888667410,-531.39,0.00019287,2]
[373164122,1752888667420,-3926.79,0.00019287,2]
[373164124,1752888667429,-1334.35,0.00019287,2]
[373164126,1752888667438,-1098.83,0.00019287,2]
[373164128,1752888667448,-1112.34,0.00019287,2]
[373164130,1752888667457,-4173.98,0.00019287,2]
[373164168,1752888667809,-480.0,0.00019287,2]
[373164170,1752888667819,-480.0,0.00019287,2]